fUSD/lending_fUSD_20241202
["ID","MTS","AMOUNT","RATE_DAILY","PERIOD"]
[344001479,1733173917872,-500.0,0.00025547,120]
[344001480,1733173917883,-500.0,0.00025547,120]
[344001481,1733173917897,-647.45,0.00025547,120]
[344001482,1733173917907,-500.0,0.00025547,120]
[344001483,1733173917918,-500.0,0.00025547,120]
[344001484,1733173917929,-500.0,0.00025547,120]
[344001485,1733173917940,-500.0,0.00025547,120]
[344001486,1733173917950,-693.61,0.00025547,120]
[344001487,1733173917960,-500.0,0.00025547,120]
[344001488,1733173917972,-500.0,0.00025547,120]
[344001489,1733173917982,-500.0,0.00025547,120]
[344001490,1733173917992,-500.0,0.00025547,120]
[344001491,1733173918003,-500.0,0.00025547,120]
[344001492,1733173918012,-500.0,0.00025547,120]
[344001493,1733173918023,-500.0,0.00025547,120]
[344001494,1733173918033,-1016.96,0.00025547,120]
[344001495,1733173918044,-323.073374,0.00025547,120]
[344001496,1733173918054,-384.37037488,0.00025547,120]
[344001497,1733173918065,-539.07,0.00025547,120]
[344001498,1733173918075,-500.0,0.00025547,120]
[344001499,1733173918085,-500.0,0.00025547,120]
[344001500,1733173918096,-500.0,0.00025547,120]
[344001501,1733173918107,-500.0,0.00025547,120]
[344001502,1733173918119,-1438.91,0.00025547,120]
[344001503,1733173918130,-500.0,0.00025547,120]
[344001504,1733173918141,-500.0,0.00025547,120]
[344001505,1733173918151,-562.03069992,0.00025547,120]
[344001506,1733173918162,-500.0,0.00025547,120]
[344001507,1733173918172,-500.0,0.00025547,120]
[344001508,1733173918183,-948.94,0.00025547,120]
[344001509,1733173918194,-500.0,0.00025547,120]
[344001510,1733173918204,-906.05,0.00025547,120]
[344001511,1733173918530,-500.0,0.00025547,120]
[344001512,1733173918540,-1074.13,0.00025547,120]
[344001513,1733173918551,-500.0,0.00025547,120]
[344001514,1733173918560,-586.50617424,0.00025547,120]
[344001515,1733173918570,-1279.4,0.00025547,120]
[344001516,1733173918580,-1576.03,0.00025547,120]
[344001517,1733173918590,-518.38,0.00025547,120]
[344001518,1733173918600,-500.0,0.00025547,120]
[344001519,1733173918610,-614.12,0.00025547,120]
[344001520,1733173918623,-849.7,0.00025547,120]
[344001521,1733173918633,-500.0,0.00025547,120]
[344001522,1733173918643,-500.0,0.00025547,120]
[344001523,1733173918654,-1011.43,0.00025547,120]
[344001524,1733173918664,-1497.62,0.00025547,120]
[344001525,1733173918674,-500.0,0.00025547,120]
[344001526,1733173918684,-500.0,0.00025547,120]
[344001527,1733173918694,-500.0,0.00025547,120]
[344001528,1733173918704,-593.64,0.00025547,120]
[344001529,1733173918714,-500.0,0.00025547,120]
[344001530,1733173918724,-500.0,0.00025547,120]
[344001531,1733173918734,-789.41,0.00025547,120]
[344001532,1733173918743,-2655.75,0.00025547,120]
[344001533,1733173918752,-1352.95,0.00025547,120]
[344001534,1733173918762,-1378.04,0.00025547,120]
[344001535,1733173918772,-500.0,0.00025547,120]
[344001536,1733173918782,-564.36,0.00025547,120]
[344001537,1733173918792,-683.33,0.00025547,120]
[344001538,1733173918802,-649.44,0.00025547,120]
[344001539,1733173918812,-1064.04,0.00025547,120]
[344001540,1733173918822,-500.0,0.00025547,120]
[344001541,1733173918831,-500.0,0.00025547,120]
[344001542,1733173918842,-500.0,0.00025547,120]
[344001543,1733173918851,-500.0,0.00025547,120]
[344001544,1733173918865,-909.32,0.00025547,120]
[344001545,1733173918876,-500.0,0.00025547,120]
[344001546,1733173918886,-748.32,0.00025547,120]
[344001547,1733173918896,-500.0,0.00025547,120]
[344001548,1733173918907,-500.0,0.00025547,120]
[344001549,1733173918917,-500.0,0.00025547,30]
[344001550,1733173918928,-500.0,0.00025547,120]
[344001551,1733173918938,-500.0,0.00025547,120]
[344001552,1733173918948,-635.71,0.00025547,120]
[344001553,1733173918958,-1695.84,0.00025547,120]
[344001554,1733173918968,-214.09113902,0.00025547,120]
[344001555,1733173918982,-631.82,0.00025547,120]
[344001556,1733173918993,-1108.62,0.00025547,120]
[344001557,1733173919005,-669.53,0.00025547,120]
[344001558,1733173919015,-638.71,0.00025547,120]
[344001559,1733173919026,-500.0,0.00025547,120]
[344001560,1733173919036,-500.0,0.00025547,120]
[344001561,1733173919045,-1016.52,0.00025547,120]
[344001562,1733173919055,-500.0,0.00025547,120]
[344001563,1733173919065,-573.9,0.00025547,120]
[344001564,1733173919075,-521.97,0.00025547,120]
[344001565,1733173919085,-500.0,0.00025547,120]
[344001566,1733173919095,-805.1,0.00025547,120]
[344001567,1733173919106,-500.0,0.00025547,120]
[344001568,1733173919118,-500.0,0.00025547,120]
[344001569,1733173919128,-500.0,0.00025547,7]
[344001570,1733173919137,-500.0,0.00025547,120]
[344001571,1733173919147,-500.0,0.00025547,120]
[344001572,1733173919158,-500.0,0.00025547,30]
[344001573,1733173919168,-500.0,0.00025547,120]
[344001574,1733173919179,-1383.06,0.00025547,120]
[344001575,1733173919189,-1894.81,0.00025547,120]
[344001576,1733173919199,-715.04,0.00025547,120]
[344001577,1733173919209,-1268.97,0.00025547,120]
[344001578,1733173919219,-500.0,0.00025547,120]
[344001579,1733173919229,-688.75,0.00025547,120]
[344001580,1733173919239,-500.0,0.00025547,120]
[344001581,1733173919249,-500.0,0.00025547,120]
[344001582,1733173919258,-500.0,0.00025547,120]
[344001583,1733173919268,-500.0,0.00025547,120]
[344001584,1733173919278,-584.97,0.00025547,120]
[344001585,1733173919287,-500.0,0.00025547,120]
[344001586,1733173919298,-1841.28,0.00025547,120]
[344001587,1733173919308,-500.0,0.00025547,120]
[344001588,1733173919318,-500.0,0.00025547,120]
[344001589,1733173919329,-500.0,0.00025547,120]
[344001590,1733173919338,-769.98,0.00025547,120]
[344001591,1733173919348,-1438.5,0.00025547,120]
[344001592,1733173919358,-500.0,0.00025547,120]
[344001593,1733173919370,-1445.35,0.00025547,30]
[344001594,1733173919380,-1921.98,0.00025547,120]
[344001595,1733173919389,-916.37,0.00025547,120]
[344001596,1733173919400,-500.0,0.00025547,120]
[344001597,1733173919410,-500.0,0.00025547,120]
[344001598,1733173919420,-445.73459038,0.00025547,30]
[344001599,1733173919431,-500.0,0.00025547,120]
[344001600,1733173919441,-500.0,0.00025547,120]
[344001601,1733173919451,-1760.2,0.00025547,120]
[344001602,1733173919462,-500.0,0.00025547,120]
[344001603,1733173919471,-1215.2,0.00025547,120]
[344001604,1733173919481,-500.0,0.00025547,120]
[344001605,1733173919492,-500.0,0.00025547,120]
[344001606,1733173919502,-218.72037827,0.00025547,120]
[344001607,1733173919512,-492.92551173,0.00025547,120]
[344001608,1733173919522,-500.0,0.00025547,120]
[344001609,1733173919532,-500.0,0.00025547,120]
[344001610,1733173919541,-500.0,0.00025547,120]
[344001611,1733173919551,-766.6,0.00025547,120]
[344001612,1733173919561,-1248.1,0.00025547,120]
[344001613,1733173919571,-500.0,0.00025547,120]
[344001614,1733173919581,-500.0,0.00025547,120]
[344001615,1733173919591,-802.31,0.00025547,120]
[344001616,1733173919602,-846.79,0.00025547,120]
[344001617,1733173919612,-897.73,0.00025547,120]
[344001618,1733173919623,-1118.72,0.00025547,120]
[344001619,1733173919633,-517.4,0.00025547,120]
[344001620,1733173919643,-997.33,0.00025547,120]
[344001621,1733173919653,-500.0,0.00025547,120]
[344001622,1733173919662,-500.0,0.00025547,120]
[344001623,1733173919673,-503.61,0.00025547,120]
[344001624,1733173919682,-500.0,0.00025547,120]
[344001625,1733173919692,-521.12,0.00025547,120]
[344001626,1733173919702,-752.16,0.00025547,120]
[344001627,1733173919712,-500.0,0.00025547,120]
[344001628,1733173919723,-1441.76,0.00025547,120]
[344001629,1733173919733,-500.0,0.00025547,120]
[344001630,1733173919743,-500.0,0.00025547,120]
[344001631,1733173919754,-500.0,0.00025547,120]
[344001632,1733173919765,-604.3,0.00025547,120]
[344001633,1733173919774,-500.0,0.00025547,120]
[344001634,1733173919784,-500.0,0.00025547,120]
[344001635,1733173919794,-500.0,0.00025547,120]
[344001636,1733173919805,-500.0,0.00025547,120]
[344001637,1733173919818,-500.0,0.00025547,120]
[344001638,1733173919828,-1158.69,0.00025547,120]
[344001639,1733173919842,-830.84,0.00025547,120]
[344001640,1733173919852,-576.91577998,0.00025547,120]
[344001641,1733173919865,-500.0,0.00025547,120]
[344001642,1733173919874,-787.02,0.00025547,120]
[344001643,1733173919884,-500.0,0.00025547,120]
[344001644,1733173919897,-678.15,0.00025547,120]
[344001645,1733173919906,-500.0,0.00025547,120]
[344001646,1733173919916,-500.0,0.00025547,120]
[344001647,1733173919925,-500.0,0.00025547,120]
[344001648,1733173919937,-579.57,0.00025547,120]
[344001649,1733173919946,-500.0,0.00025547,120]
[344001650,1733173919956,-693.81,0.00025547,120]
[344001651,1733173919966,-255.31139602,0.00025547,120]
[344001652,1733173919975,-767.25,0.00025547,120]
[344001653,1733173919986,-500.0,0.00025547,120]
[344001654,1733173919995,-500.0,0.00025547,120]
[344001655,1733173920006,-500.0,0.00025547,120]
[344001656,1733173920016,-2348.9,0.00025547,120]
[344001657,1733173920026,-500.0,0.00025547,120]
[344001658,1733173920035,-500.0,0.00025547,120]
[344001659,1733173920045,-500.0,0.00025547,120]
[344001660,1733173920058,-1617.44,0.00025547,120]
[344001661,1733173920068,-500.0,0.00025547,120]
[344001662,1733173920078,-1282.12,0.00025547,120]
[344001663,1733173920087,-500.0,0.00025547,120]
[344001664,1733173920097,-1078.12,0.00025547,120]
[344001665,1733173920107,-150.0,0.00025547,120]
[344001666,1733173920118,-940.92,0.00025547,120]
[344001667,1733173920128,-500.0,0.00025547,120]
[344001668,1733173920138,-500.0,0.00025547,120]
[344001669,1733173920149,-500.0,0.00025547,120]
[344001670,1733173920159,-500.0,0.00025547,120]
[344001671,1733173920168,-500.0,0.00025547,120]
[344001672,1733173920179,-691.66,0.00025547,120]
[344001673,1733173920190,-544.78502367,0.00025547,60]
[344001674,1733173920201,-558.18562967,0.00025547,120]
[344001675,1733173920212,-1571.16,0.00025547,120]
[344001676,1733173920223,-1223.14,0.00025547,120]
[344001677,1733173920234,-500.0,0.00025547,120]
[344001678,1733173920244,-500.0,0.00025547,120]
[344001679,1733173920254,-500.0,0.00025547,120]
[344001680,1733173920264,-5000.0,0.00025547,120]
[344001681,1733173920273,-500.0,0.00025547,120]
[344001682,1733173920283,-500.0,0.00025547,120]
[344001683,1733173920294,-1350.61,0.00025547,120]
[344001684,1733173920304,-1568.88,0.00025547,120]
[344001685,1733173920314,-2663.86,0.00025547,120]
[344001686,1733173920325,-621.59,0.00025547,120]
[344001687,1733173920335,-500.0,0.00025547,120]
[344001688,1733173920344,-636.28,0.00025547,120]
[344001689,1733173920354,-500.0,0.00025547,120]
[344001690,1733173920367,-693.25,0.00025547,120]
[344001691,1733173920377,-500.0,0.00025547,120]
[344001692,1733173920387,-500.0,0.00025547,120]
[344001693,1733173920397,-587.4,0.00025547,120]
[344001694,1733173920406,-868.6,0.00025547,120]
[344001695,1733173920416,-1577.1,0.00025547,120]
[344001696,1733173920425,-500.0,0.00025547,120]
[344001697,1733173920435,-1166.05,0.00025547,120]
[344001698,1733173920444,-566.77,0.00025547,120]
[344001699,1733173920454,-1978.5,0.00025547,120]
[344001700,1733173920464,-500.0,0.00025547,120]
[344001701,1733173920473,-1500.0,0.00025547,120]
[344001702,1733173920483,-500.0,0.00025547,120]
[344001703,1733173920492,-317.61261156,0.00025547,120]
[344001704,1733173920503,-500.0,0.00025547,120]
[344001705,1733173920513,-1747.08,0.00025547,120]
[344001706,1733173920523,-500.0,0.00025547,120]
[344001707,1733173920533,-536.0,0.00025547,120]
[344001708,1733173920543,-1118.31,0.00025547,120]
[344001709,1733173920552,-500.0,0.00025547,120]
[344001710,1733173920561,-500.0,0.00025547,120]
[344001711,1733173920571,-500.0,0.00025547,120]
[344001712,1733173920581,-570.74,0.00025547,120]
[344001713,1733173920590,-1482.82,0.00025547,120]
[344001714,1733173920600,-500.0,0.00025547,120]
[344001715,1733173920610,-500.0,0.00025547,120]
[344001716,1733173920623,-967.04,0.00025547,120]
[344001717,1733173920635,-1001.25,0.00025547,120]
[344001718,1733173920645,-750.49,0.00025547,120]
[344001719,1733173920655,-500.0,0.00025547,120]
[344001720,1733173920665,-1232.81,0.00025547,120]
[344001721,1733173920675,-500.0,0.00025547,120]
[344001722,1733173920685,-236.37642275,0.00025547,120]
[344001723,1733173920694,-1574.41,0.00025547,120]
[344001724,1733173920704,-500.0,0.00025547,120]
[344001725,1733173920715,-958.2,0.00025547,120]
[344001726,1733173920725,-500.0,0.00025547,120]
[344001727,1733173920735,-500.0,0.00025547,120]
[344001728,1733173920746,-500.0,0.00025547,120]
[344001729,1733173920756,-783.5,0.00025547,120]
[344001730,1733173920765,-500.0,0.00025547,120]
[344001731,1733173920776,-500.0,0.00025547,120]
[344001732,1733173920786,-500.0,0.00025547,120]
[344001733,1733173920796,-500.0,0.00025547,120]
[344001734,1733173920806,-500.0,0.00025547,120]
[344001735,1733173920816,-500.0,0.00025547,120]
[344001736,1733173920826,-500.0,0.00025547,120]
[344001737,1733173920835,-500.0,0.00025547,120]
[344001738,1733173920848,-552.63,0.00025547,120]
[344001739,1733173920858,-610.35,0.00025547,120]
[344001740,1733173920874,-500.0,0.00025547,120]
[344001741,1733173920884,-500.0,0.00025547,120]
[344001742,1733173920894,-500.0,0.00025547,120]
[344001743,1733173920904,-500.0,0.00025547,120]
[344001744,1733173920915,-500.0,0.00025547,120]
[344001745,1733173920924,-500.0,0.00025547,120]
[344001746,1733173920935,-841.84,0.00025547,120]
[344001747,1733173921038,-500.0,0.00025547,120]
[344001748,1733173921048,-500.0,0.00025547,120]
[344001749,1733173921057,-500.0,0.00025547,120]
[344001750,1733173921067,-520.11804245,0.00025547,120]
[344001751,1733173921077,-911.1,0.00025547,120]
[344001752,1733173921086,-500.0,0.00025547,120]
[344001753,1733173921096,-815.5,0.00025547,120]
[344001754,1733173921106,-500.0,0.00025547,120]
[344001755,1733173921118,-500.0,0.00025547,120]
[344001756,1733173921128,-1276.41,0.00025547,120]
[344001757,1733173921138,-1476.76,0.00025547,120]
[344001758,1733173921147,-1004.13,0.00025547,120]
[344001759,1733173921157,-500.0,0.00025547,120]
[344001760,1733173921166,-525.61,0.00025547,120]
[344001761,1733173921175,-500.0,0.00025547,120]
[344001762,1733173921184,-500.0,0.00025547,7]
[344001763,1733173921194,-640.85,0.00025547,120]
[344001764,1733173921203,-500.0,0.00025547,120]
[344001765,1733173921213,-304.22,0.00025547,120]
[344001766,1733173921223,-903.62,0.00025547,120]
[344001767,1733173921232,-2509.7,0.00025547,120]
[344001768,1733173921242,-500.0,0.00025547,120]
[344001769,1733173921251,-500.0,0.00025547,120]
[344001770,1733173921260,-500.0,0.00025547,120]
[344001771,1733173921270,-500.0,0.00025547,120]
[344001772,1733173921279,-1173.76,0.00025547,120]
[344001773,1733173921288,-795.58,0.00025547,120]
[344001774,1733173921298,-1377.31,0.00025547,120]
[344001775,1733173921307,-652.33,0.00025547,120]
[344001776,1733173921316,-500.0,0.00025547,120]
[344001777,1733173921325,-500.0,0.00025547,120]
[344001778,1733173921334,-885.1,0.00025547,2]
[344001779,1733173921344,-500.0,0.00025547,120]
[344001780,1733173921353,-1075.95,0.00025547,120]
[344001781,1733173921362,-500.0,0.00025547,120]
[344001782,1733173921373,-500.0,0.00025547,120]
[344001783,1733173921382,-1729.83,0.00025547,120]
[344001784,1733173921392,-666.69,0.00025547,120]
[344001785,1733173921401,-1047.59,0.00025547,120]
[344001786,1733173921411,-781.9,0.00025547,120]
[344001787,1733173921420,-500.0,0.00025547,120]
[344001788,1733173921429,-681.91,0.00025547,120]
[344001789,1733173921439,-500.0,0.00025547,120]
[344001790,1733173921449,-715.49,0.00025547,120]
[344001791,1733173921459,-500.0,0.00025547,120]
[344001792,1733173921468,-500.0,0.00025547,120]
[344001793,1733173921478,-500.0,0.00025547,120]
[344001794,1733173921488,-500.0,0.00025547,120]
[344001795,1733173921497,-500.0,0.00025547,120]
[344001796,1733173921507,-500.0,0.00025547,2]
[344001797,1733173921517,-500.0,0.00025547,120]
[344001798,1733173921527,-1658.11,0.00025547,120]
[344001799,1733173921538,-500.0,0.00025547,120]
[344001800,1733173921548,-500.0,0.00025547,90]
[344001801,1733173921558,-500.0,0.00025547,120]
[344001802,1733173921569,-454.16878929,0.00025547,120]
[344001803,1733173921579,-500.0,0.00025547,120]
[344001804,1733173921589,-500.0,0.00025547,120]
[344001805,1733173921599,-1024.52,0.00025547,120]
[344001806,1733173921609,-500.0,0.00025547,120]
[344001807,1733173921621,-2072.56,0.00025547,120]
[344001808,1733173921631,-1959.08,0.00025547,120]
[344001809,1733173921642,-500.0,0.00025547,120]
[344001810,1733173921652,-979.74,0.00025547,120]
[344001811,1733173921662,-500.0,0.00025547,120]
[344001812,1733173921671,-660.29,0.00025547,120]
[344001813,1733173921682,-500.0,0.00025547,120]
[344001814,1733173921695,-1650.66,0.00025547,120]
[344001815,1733173921706,-5045.62,0.00025547,120]
[344001816,1733173921718,-500.0,0.00025547,120]
[344001817,1733173921728,-897.7,0.00025547,120]
[344001818,1733173921739,-500.0,0.00025547,120]
[344001819,1733173921750,-500.0,0.00025547,120]
[344001820,1733173921761,-2101.0,0.00025547,120]
[344001821,1733173921772,-500.0,0.00025547,120]
[344001822,1733173921782,-1756.07,0.00025547,120]
[344001823,1733173921793,-500.0,0.00025547,120]
[344001824,1733173921804,-1109.12,0.00025547,120]
[344001825,1733173921814,-1685.71,0.00025547,120]
[344001826,1733173921824,-571.56,0.00025547,120]
[344001827,1733173921834,-500.0,0.00025547,120]
[344001828,1733173921845,-503.6,0.00025547,120]
[344001829,1733173921854,-500.0,0.00025547,120]
[344001830,1733173921870,-2455.85,0.00025547,120]
[344001831,1733173921879,-767.43,0.00025547,120]
[344001832,1733173921890,-3414.81,0.00025547,120]
[344001833,1733173921901,-857.49,0.00025547,120]
[344001834,1733173921911,-202.26,0.00025547,120]
[344001835,1733173921920,-500.0,0.00025547,120]
[344001836,1733173921931,-511.83,0.00025547,120]
[344001837,1733173921941,-921.9,0.00025547,120]
[344001838,1733173921950,-500.0,0.00025547,120]
[344001839,1733173921961,-790.55,0.00025547,120]
[344001840,1733173921971,-2418.81,0.00025547,120]
[344001841,1733173921981,-500.0,0.00025547,120]
[344001842,1733173921991,-614.05,0.00025547,120]
[344001843,1733173922001,-2246.95,0.00025547,120]
[344001844,1733173922011,-500.0,0.00025547,120]
[344001845,1733173922021,-1254.54,0.00025547,120]
[344001846,1733173922031,-500.0,0.00025547,120]
[344001847,1733173922041,-500.0,0.00025547,120]
[344001848,1733173922050,-500.0,0.00025547,120]
[344001849,1733173922061,-500.0,0.00025547,120]
[344001850,1733173922070,-259.28426018,0.00025547,120]
[344001851,1733173922079,-500.0,0.00025547,120]
[344001852,1733173922089,-500.0,0.00025547,120]
[344001853,1733173922099,-500.0,0.00025547,120]
[344001854,1733173922108,-237.27641015,0.00025547,120]
[344001855,1733173922121,-500.0,0.00025547,120]
[344001856,1733173922130,-1323.8,0.00025547,120]
[344001857,1733173922140,-500.0,0.00025547,120]
[344001858,1733173922150,-291.83746754,0.00025547,120]
[344001859,1733173922160,-646.17524508,0.00025547,120]
[344001860,1733173922170,-620.45,0.00025547,120]
[344001861,1733173922179,-500.0,0.00025547,120]
[344001862,1733173922189,-500.0,0.00025547,120]
[344001863,1733173922198,-500.0,0.00025547,120]
[344001864,1733173922208,-500.0,0.00025547,120]
[344001865,1733173922217,-155.26,0.00025547,120]
[344001866,1733173922227,-349.84984429,0.00025547,120]
[344001867,1733173922237,-500.0,0.00025547,120]
[344001868,1733173922246,-500.0,0.00025547,120]
[344001869,1733173922255,-321.48,0.00025547,120]
[344001870,1733173922265,-500.0,0.00025547,120]
[344001871,1733173922274,-279.9,0.00025547,120]
[344001872,1733173922283,-500.0,0.00025547,120]
[344001873,1733173922292,-362.52395485,0.00025547,120]
[344001874,1733173922302,-353.44,0.00025547,120]
[344001875,1733173922311,-500.0,0.00025547,120]
[344001876,1733173922320,-500.0,0.00025547,120]
[344001877,1733173922329,-2292.53,0.00025547,120]
[344001878,1733173922339,-185.14,0.00025547,120]
[344001879,1733173922348,-500.0,0.00025547,120]
[344001880,1733173922358,-571.48,0.00025547,120]
[344001881,1733173922368,-500.0,0.00025547,120]
[344001882,1733173922378,-585.33,0.00025547,120]
[344001883,1733173922387,-500.0,0.00025547,120]
[344001884,1733173922397,-500.0,0.00025547,120]
[344001885,1733173922406,-208.56057522,0.00025547,120]
[344001886,1733173922416,-500.0,0.00025547,120]
[344001887,1733173922425,-240.68,0.00025547,120]
[344001888,1733173922435,-500.0,0.00025547,120]
[344001889,1733173922444,-400.87250727,0.00025547,120]
[344001890,1733173922453,-1245.89,0.00025547,120]
[344001891,1733173922462,-737.02,0.00025547,120]
[344001892,1733173922472,-684.34,0.00025547,60]
[344001893,1733173922481,-233.49231942,0.00025547,120]
[344001894,1733173922490,-604.42,0.00025547,120]
[344001895,1733173922499,-500.0,0.00025547,30]
[344001896,1733173922509,-777.5,0.00025547,120]
[344001897,1733173922519,-500.0,0.00025547,120]
[344001898,1733173922528,-828.94,0.00025547,120]
[344001899,1733173922537,-500.0,0.00025547,120]
[344001900,1733173922547,-2016.79,0.00025547,120]
[344001901,1733173922556,-1832.25,0.00025547,120]
[344001902,1733173922566,-866.0,0.00025547,120]
[344001903,1733173922575,-500.0,0.00025547,120]
[344001904,1733173922585,-500.0,0.00025547,120]
[344001905,1733173922595,-500.0,0.00025547,120]
[344001906,1733173922604,-500.0,0.00025547,120]
[344001907,1733173922614,-500.0,0.00025547,120]
[344001908,1733173922629,-2674.28,0.00025547,120]
[344001909,1733173922639,-2664.77,0.00025547,120]
[344001910,1733173922648,-1112.26,0.00025547,120]
[344001911,1733173922658,-2232.19,0.00025547,120]
[344001912,1733173922667,-742.5,0.00025547,120]
[344001913,1733173922677,-1190.43,0.00025547,120]
[344001914,1733173922687,-500.0,0.00025547,120]
[344001915,1733173922697,-500.0,0.00025547,120]
[344001916,1733173922707,-500.0,0.00025547,120]
[344001917,1733173922716,-500.0,0.00025547,120]
[344001918,1733173922726,-610.61,0.00025547,120]
[344001919,1733173922735,-500.0,0.00025547,120]
[344001920,1733173922744,-4399.78,0.00025547,120]
[344001921,1733173922754,-500.0,0.00025547,120]
[344001922,1733173922764,-3599.49,0.00025547,120]
[344001923,1733173922773,-561.91,0.00025547,120]
[344001924,1733173922783,-500.0,0.00025547,120]
[344001925,1733173922792,-500.0,0.00025547,120]
[344001926,1733173922802,-1229.73,0.00025547,120]
[344001927,1733173922811,-573.74976485,0.00025547,120]
[344001928,1733173922821,-500.0,0.00025547,120]
[344001929,1733173922831,-500.0,0.00025547,120]
[344001930,1733173922840,-2211.24,0.00025547,120]
[344001931,1733173922850,-835.68,0.00025547,120]
[344001932,1733173922860,-911.82,0.00025547,120]
[344001933,1733173922883,-500.0,0.00025547,120]
[344001934,1733173922893,-3073.1,0.00025547,120]
[344001935,1733173922904,-500.0,0.00025547,120]
[344001936,1733173922914,-500.0,0.00025547,120]
[344001937,1733173922924,-950.19,0.00025547,120]
[344001938,1733173922934,-2188.0,0.00025547,120]
[344001939,1733173922943,-500.0,0.00025547,120]
[344001940,1733173922953,-500.0,0.00025547,120]
[344001941,1733173922963,-720.05,0.00025547,120]
[344001942,1733173922973,-500.0,0.00025547,120]
[344001943,1733173922982,-1070.7,0.00025547,120]
[344001944,1733173922991,-745.59,0.00025547,120]
[344001945,1733173923001,-500.0,0.00025547,120]
[344001946,1733173923011,-500.0,0.00025547,120]
[344001947,1733173923020,-1469.21,0.00025547,120]
[344001948,1733173923030,-558.2,0.00025547,120]
[344001949,1733173923040,-1205.37,0.00025547,120]
[344001950,1733173923050,-573.97,0.00025547,120]
[344001951,1733173923060,-500.0,0.00025547,120]
[344001952,1733173923069,-500.0,0.00025547,120]
[344001953,1733173923079,-2195.48,0.00025547,120]
[344001954,1733173923090,-500.0,0.00025547,120]
[344001955,1733173923101,-4194.31,0.00025547,120]
[344001956,1733173923112,-500.0,0.00025547,120]
[344001957,1733173923126,-534.37,0.00025547,120]
[344001958,1733173923137,-500.0,0.00025547,120]
[344001959,1733173923148,-700.39,0.00025547,120]
[344001960,1733173923159,-3043.63,0.00025547,120]
[344001961,1733173923171,-1907.51,0.00025547,120]
[344001962,1733173923182,-701.19,0.00025547,120]
[344001964,1733173923193,-628.49,0.00025547,120]
[344001965,1733173923203,-1063.88,0.00025547,120]
[344001966,1733173923214,-500.0,0.00025547,120]
[344001968,1733173923224,-500.0,0.00025547,120]
[344001969,1733173923235,-725.89,0.00025547,120]
[344001970,1733173923245,-681.62,0.00025547,120]
[344001971,1733173923256,-656.93,0.00025547,120]
[344001972,1733173923267,-500.0,0.00025547,120]
[344001973,1733173923277,-500.0,0.00025547,120]
[344001975,1733173923287,-732.6,0.00025547,120]
[344001976,1733173923297,-500.0,0.00025547,120]
[344001977,1733173923306,-500.0,0.00025547,120]
[344001978,1733173923316,-3453.59,0.00025547,120]
[344001979,1733173923326,-2009.84,0.00025547,120]
[344001980,1733173923336,-543.11,0.00025547,120]
[344001982,1733173923346,-500.0,0.00025547,120]